lending/lending_fUSD_20240110
["ID","MTS","AMOUNT","RATE_DAILY","PERIOD"]
[311032233,1704877838746,-1581.27269501,0.00022539,2]
[311032234,1704877838756,-7949.83508401,0.00022539,2]
[311032235,1704877838765,-1580.93516946,0.00022539,2]
[311032236,1704877838775,-1069.85346443,0.00022539,2]
[311032237,1704877838784,-2333.20931151,0.0002254,2]
[311032238,1704877838793,-9999.99,0.0002254,2]
[311032239,1704877838803,-2660.43,0.0002254,2]
[311032240,1704877838812,-53547.04452145,0.00022541,2]
[311032241,1704877838841,-55078.74004689,0.00022541,2]
[311032242,1704877838850,-161.16455145,0.00022547,2]
[311032244,1704877838860,-176.63161643,0.00022548,2]
[311032246,1704877838868,-184.88,0.00022562,2]
[311032248,1704877838877,-161.16455145,0.00022591,2]
[311032250,1704877838887,-184.88,0.00022622,2]
[311032252,1704877838896,-161.16455145,0.00022635,2]
[311032254,1704877838905,-14330.59847731,0.00022652,2]
[311032256,1704877838914,-249.83540319,0.00022669,2]
[311032258,1704877838923,-360.68558598,0.00022669,4]
[311032260,1704877838933,-161.16455145,0.00022679,2]
[311032262,1704877838942,-184.88,0.00022682,2]
[311032264,1704877838951,-2390.39323209,0.00022683,2]
[311032266,1704877838960,-226.31,0.00022697,2]
[311032268,1704877838970,-500.0,0.000227,2]
[311032269,1704877838979,-1000.0,0.000227,2]
[311032271,1704877838988,-161.16455145,0.00022723,2]
[311032273,1704877838997,-184.88,0.00022742,2]
[311032275,1704877839007,-161.16455145,0.00022767,2]
[311032277,1704877839016,-5270.32227151,0.00022794,2]
[311032280,1704877839026,-166.06,0.00022797,2]
[311032282,1704877839035,-1233.76827622,0.00022797,2]
[311032284,1704877839045,-1979.7325,0.000228,2]
[311032286,1704877839055,-3294.3697706,0.000228,2]
[311032288,1704877839064,-744.7107,0.000228,2]
[311032289,1704877839074,-7115.3988,0.000228,2]
[311032291,1704877839083,-184.88,0.00022802,2]
[311032293,1704877839092,-177.45,0.00022805,2]
[311032295,1704877839101,-161.16455145,0.00022812,2]
[311032297,1704877839111,-161.16455145,0.00022856,2]
[311032299,1704877839120,-184.88,0.00022863,2]
[311032301,1704877839130,-215.21809469,0.00022875,2]
[311032303,1704877839139,-155.0,0.00022898,2]
[311032305,1704877839149,-171.61355998,0.00022898,2]
[311032306,1704877839158,-155.0,0.00022898,2]
[311032307,1704877839167,-242.1048025,0.00022898,2]
[311032309,1704877839177,-164.58146813,0.00022898,2]
[311032311,1704877839186,-277.86960286,0.00022898,2]
[311032313,1704877839195,-155.0,0.00022898,2]
[311032315,1704877839205,-234.80481503,0.00022898,2]
[311032317,1704877839215,-162.10379439,0.00022898,2]
[311032319,1704877839225,-155.0,0.00022898,2]
[311032321,1704877839235,-269.4429059,0.00022898,2]
[311032323,1704877839244,-1767.99095544,0.00022898,2]
[311032325,1704877839253,-155.0,0.00022898,2]
[311032327,1704877839263,-303.97545888,0.00022898,2]
[311032329,1704877839271,-514.64597096,0.00022898,2]
[311032331,1704877839281,-3618.63889774,0.00022898,2]
[311032333,1704877839290,-711.59237982,0.00022898,2]
[311032335,1704877839299,-2266.11245746,0.00022898,2]
[311032337,1704877839308,-656.77952571,0.00022898,2]
[311032339,1704877839318,-184.1910263,0.00022898,2]
[311032341,1704877839328,-196.37114886,0.00022898,2]
[311032343,1704877839337,-2775.44187928,0.00022898,2]
[311032345,1704877839347,-155.0,0.00022898,2]
[311032347,1704877839358,-1965.09054958,0.00022898,2]
[311032349,1704877839367,-1705.71895053,0.00022898,2]
[311032351,1704877839376,-155.0,0.00022898,2]
[311032353,1704877839386,-260.37778839,0.00022898,2]
[311032355,1704877839395,-1254.29701492,0.00022898,2]
[311032357,1704877839404,-1000.0,0.00022898,2]
[311032359,1704877839413,-662.6925,0.00022898,2]
[311032361,1704877839422,-229.1649,0.00022898,2]
[311032363,1704877839431,-10401.04216602,0.00022899,2]
[311032365,1704877839440,-34471.5994,0.000229,2]
[311032367,1704877839449,-95790.1378,0.000229,2]
[311032369,1704877839462,-14380.46794946,0.000229,2]
[311032371,1704877839471,-1000.0,0.000229,2]
[311032373,1704877839480,-14948.0502,0.000229,2]
[311032375,1704877839489,-161.16455145,0.000229,2]
[311032377,1704877839499,-192.5172558,0.000229,2]
[311032379,1704877839509,-191.79422706,0.000229,2]
[311032381,1704877839518,-3834.19582534,0.000229,2]
[311032383,1704877839527,-184.88,0.00022923,2]
[311032385,1704877839536,-184.88,0.00022983,2]
[311032387,1704877839546,-235.24352516,0.00022998,2]
[311032389,1704877839555,-155.0,0.00022999,2]
[311032391,1704877839565,-232.75551705,0.00022999,2]
[311032393,1704877839574,-155.35989015,0.00022999,2]
[311032395,1704877839583,-155.0,0.00022999,2]
[311032397,1704877839593,-4141332.97984738,0.00023,2]
[311032399,1704877839602,-932.39338065,0.00023,2]
[311032401,1704877839611,-253327.86145759,0.00023,2]
[311032404,1704877839623,-979.31412629,0.00023,2]
[311032407,1704877839646,-527.74939955,0.00023,2]
[311032562,1704877841085,-49505.94671478,0.00023,2]
[311032565,1704877841104,-390.96466,0.00023,2]
[311032567,1704877841116,-1043.835176,0.00023,2]
[311032676,1704877842144,-36890.85417466,0.00023,2]
[311032678,1704877842155,-82374.48589619,0.00023,2]
[311032881,1704877844120,-2733.76359005,0.00023,2]
[311032884,1704877844135,-1610.1893674,0.00023,2]
[311032886,1704877844146,-24455.73306946,0.00023,2]
[311032923,1704877844480,-466084.93507787,0.00023,2]
[311032925,1704877844492,-296.95776435,0.00023,2]
[311032927,1704877844503,-1060.31500001,0.00023,2]
[311032930,1704877844515,-566.62860673,0.00023,2]
[311032937,1704877844653,-250.2122366,0.000229,2]
[311032939,1704877844662,-16012.47573536,0.00023,2]
[311032941,1704877844678,-377.90217753,0.00023,2]
[311032945,1704877844702,-28850.68229741,0.00023,2]
[311032946,1704877844714,-9988.66737999,0.00023,2]
[311032953,1704877846321,-179.99129703,0.000228,2]
[311032954,1704877846330,-211.58072365,0.00022999,2]
[311032955,1704877846339,-1053.77499032,0.00023,2]
[311032956,1704877846350,-8193.80401307,0.00023,2]
[311032957,1704877846379,-30368.65862832,0.00023,2]
[311032958,1704877846390,-1652.23369807,0.00023,2]
[311032959,1704877846403,-8664.96888376,0.00023,2]
[311032960,1704877846414,-7277.98111624,0.00023,2]
[311032961,1704877846444,-806.2381199,0.00023,2]
[311032962,1704877846457,-2000.00618339,0.00023,2]
[311032963,1704877848507,-421.6775717,0.00023,2]
[311032964,1704877848565,-1952.34763498,0.00023,2]
[311033151,1704877853416,559.9916769,0.00020469,2]
[311033152,1704877855812,26599.7708,0.00022438,2]
[311033153,1704877856446,164.25299046,0.00021849,2]
[311033154,1704877861049,380.45986741,0.00020468,2]
[311033155,1704877861705,563.72651413,0.00021848,2]
[311033156,1704877861993,-155.0,0.00022999,2]
[311033157,1704877862016,-17853.86314024,0.00022999,2]
[311033158,1704877862039,-1069.85346443,0.00022999,2]
[311033159,1704877862059,-5090.9238642,0.00022999,2]
[311033160,1704877862079,-348.81753963,0.00022999,2]
[311033161,1704877862099,-9510.3517178,0.00022999,2]
[311033162,1704877862120,-3617.84690064,0.00022999,2]
[311033163,1704877862141,-2038.87485936,0.00022999,4]
[311033164,1704877862161,-155.0,0.00022999,2]
[311033165,1704877862183,-1029.74826683,0.00022999,2]
[311033166,1704877862204,-161.85398166,0.00022999,2]
[311033167,1704877862224,-844.96671135,0.00022999,2]
[311033168,1704877862244,-6428.45607218,0.00022999,2]
[311033169,1704877862278,-1331.50869829,0.00022999,2]
[311033170,1704877862306,-158.50749512,0.00022999,2]
[311033171,1704877862336,-1104801.77730867,0.00023,2]
[311033172,1704877863523,517.95865647,0.00022998,2]
[311033173,1704877866365,495.09440729,0.00020698,5]
[311033175,1704877899410,8558.1867,0.00022441,2]
[311033176,1704877904353,39099.3113,0.00022441,2]
[311033177,1704877927230,1052.1783,0.00022441,2]
[311033178,1704877929347,100000.0,0.00022441,2]
[311033179,1704877941008,632.4128,0.000229,2]
[311033180,1704877943332,205.5773,0.000229,2]
[311033181,1704877955861,156.47,0.00021924,2]
[311033182,1704877977657,1000.0,0.000229,2]
[311033184,1704878010079,274.822,0.0002277,2]
[311033185,1704878010115,208.241,0.0002254,2]
[311033186,1704878010145,274.823,0.0002277,2]
[311033187,1704878010180,208.242,0.0002254,2]
[311033188,1704878010207,274.823,0.0002277,2]
[311033189,1704878010239,208.241,0.0002254,2]
[311033190,1704878010273,208.241,0.0002254,2]
[311033191,1704878010302,274.822,0.0002277,2]
[311033192,1704878010336,208.241,0.0002254,2]
[311033193,1704878010368,274.823,0.0002277,2]
[311033198,1704878105709,2000.0,0.00023,2]
[311033199,1704878110782,200.0,0.00023,2]
[311033201,1704878184724,1002.10632714,0.00022998,5]
[311033204,1704878314086,206.0,0.00022167,2]
[311033206,1704878405054,2000.0,0.00023,2]
[311033207,1704878411216,200.0,0.00023,2]
[311033209,1704878567375,150.0,0.0002267,2]
[311033210,1704878567750,150.0,0.0002263,2]
[311033211,1704878705376,2000.0,0.00023,2]
[311033212,1704878711454,200.0,0.00023,2]
[311033213,1704878714983,150.03315886,0.0003,120]
[311033217,1704878915919,158.19946118,0.00022939,2]
[311033227,1704879023154,195.09,0.00025117,120]
[311033228,1704879028663,217.81320089,0.00022939,2]
[311033229,1704879030293,156.36997875,0.00022939,2]
[311033235,1704879031386,-1069.85346443,0.00023009,2]
[311033237,1704879031395,-1283.4738684,0.0002301,2]
[311033241,1704879031451,-1003.29,0.0002301,2]
[311033242,1704879031463,-16.31120358,0.0002301,2]
[311033243,1704879031473,-722.19,0.00023039,2]
[311033244,1704879031482,-717.3,0.00023039,2]
[311033245,1704879031491,-150.0,0.0002304,2]
[311033246,1704879031501,-931.3333666,0.0002304,2]
[311033247,1704879031510,-7294.83351311,0.00023041,2]
[311033248,1704879031520,-427.54470443,0.00023042,2]
[311033249,1704879031529,-1468.63367225,0.0002313,2]
[311033250,1704879031539,-957.32859071,0.00023168,2]
[311033251,1704879031549,-150.99,0.00023229,2]
[311033252,1704879031558,-1420.45,0.00023229,2]
[311033253,1704879031568,-1069.26,0.00023229,2]
[311033254,1704879031577,-2000.0,0.0002323,2]
[311033255,1704879031586,-200.0,0.0002323,2]
[311033256,1704879031596,-3558.64,0.0002323,2]
[311033257,1704879031605,-2000.0,0.0002323,2]
[311033258,1704879031614,-200.0,0.0002323,2]
[311033259,1704879031624,-2000.0,0.0002323,2]
[311033260,1704879031633,-200.0,0.0002323,2]
[311033261,1704879031643,-2187.57,0.0002323,2]
[311033262,1704879031653,-499.99,0.0002323,2]
[311033263,1704879031662,-951.09410071,0.00023246,2]
[311033264,1704879031672,-156.05,0.00023345,2]
[311033265,1704879031682,-177.45,0.00023348,2]
[311033266,1704879031692,-360.6,0.00023456,2]
[311033267,1704879031703,-2000.0,0.00023462,2]
[311033268,1704879031713,-200.0,0.00023462,2]
[311033269,1704879031724,-2000.0,0.00023462,2]
[311033270,1704879031734,-200.0,0.00023462,2]
[311033271,1704879031745,-2000.0,0.00023462,2]
[311033272,1704879031755,-200.0,0.00023462,2]
[311033273,1704879031765,-156.05,0.00023491,2]
[311033274,1704879031775,-1000.0,0.00023635,2]
[311033275,1704879031784,-156.05,0.00023636,2]
[311033276,1704879031794,-1887.36397955,0.00023697,2]
[311033277,1704879031807,-112.63602045,0.00023697,2]
[311033278,1704879031817,-200.0,0.00023697,2]
[311033279,1704879031827,-142.67397955,0.00023697,2]
[311033280,1704879031850,-1857.32602045,0.00023697,2]
[311033281,1704879031860,-200.0,0.00023697,2]
[311033282,1704879031870,-2000.0,0.00023697,2]
[311033283,1704879031880,-200.0,0.00023697,2]
[311033284,1704879031890,-156.05,0.00023782,2]
[311033285,1704879031900,-177.45,0.00023891,2]
[311033286,1704879031909,-156.05,0.00023928,2]
[311033287,1704879031919,-494.25850074,0.00023934,3]
[311033288,1704879031929,-2000.0,0.00023934,2]
[311033289,1704879031938,-200.0,0.00023934,2]
[311033290,1704879031950,-2000.0,0.00023934,2]
[311033291,1704879031960,-200.0,0.00023934,2]
[311033292,1704879031970,-2000.0,0.00023934,2]
[311033293,1704879031979,-200.0,0.00023934,2]
[311033294,1704879031989,-156.47,0.00023986,2]
[311033295,1704879031998,-156.05,0.00024074,2]
[311033296,1704879032008,-156.05,0.0002422,2]
[311033297,1704879032018,-156.05,0.00024366,2]
[311033298,1704879032028,-156.05,0.00024512,2]
[311033299,1704879032037,-156.05,0.00024658,2]
[311033300,1704879032046,-156.05,0.00024804,2]
[311033301,1704879032056,-156.05,0.00024949,2]
[311033302,1704879032065,-250.0,0.00024967,2]
[311033303,1704879032075,-1006.3554781,0.00024999,2]
[311033304,1704879032084,-184.60611876,0.00025,2]
[311033305,1704879032094,-433.06674911,0.00025,2]
[311033306,1704879032103,-350.0,0.00025,3]
[311033307,1704879032112,-166.06,0.00025092,2]
[311033308,1704879032122,-156.05,0.00025095,2]
[311033309,1704879032131,-184.87,0.00025127,2]
[311033310,1704879032140,-338.06,0.00025132,2]
[311033311,1704879032150,-178.81,0.00025228,2]
[311033312,1704879032159,-156.05,0.00025241,2]
[311033313,1704879032168,-259.65,0.00025257,2]
[311033314,1704879032178,-2000.0,0.00025275,2]
[311033315,1704879032187,-210.0,0.00025344,2]
[311033316,1704879032198,-156.05,0.00025387,2]
[311033317,1704879032207,-172.46,0.00025436,2]
[311033318,1704879032217,-156.05,0.00025533,2]
[311033319,1704879032226,-160.23,0.00025546,2]
[311033320,1704879032234,-152.17,0.00025675,2]
[311033321,1704879032243,-156.05,0.00025679,2]
[311033322,1704879032251,-188.1773053,0.0002572,2]
[311033323,1704879032279,-172.4226947,0.0002572,2]
[311033324,1704879032289,-676.66054704,0.000258,2]
[311033325,1704879032305,-321.37685296,0.000258,2]
[311033326,1704879032315,-127.50240272,0.00025878,2]
[311033327,1704879032332,-44.95759728,0.00025878,2]
[311033328,1704879032342,-3376.92298646,0.000259,2]
[311033329,1704879032353,-6169.76253763,0.000259,2]
[311033331,1704879032365,-886.10191071,0.000259,2]
[311033333,1704879033670,226.69801692,0.00022939,2]
[311033334,1704879034779,155.77460441,0.00020645,2]
[311033353,1704879037521,-206.0,0.00023607,2]
[311033354,1704879037531,-1129.6738995,0.000259,2]
[311033355,1704879037550,-2103.3787534,0.000259,2]
[311033415,1704879038425,-748.68438005,0.000259,2]
[311033417,1704879038437,-3466.66028671,0.000259,2]
[311033426,1704879038516,-1429.83575245,0.000259,2]
[311033428,1704879038527,-399.37201755,0.000259,2]
[311033432,1704879038548,-1012.15529891,0.000259,2]
[311033434,1704879038560,-17421.0219,0.000259,2]
[311033436,1704879038571,-1387.43027663,0.000259,2]
[311033438,1704879038581,-160.23,0.00026027,2]
[311033440,1704879038590,-156.47,0.00026048,2]
[311033442,1704879038599,-150.0,0.00026079,2]
[311033444,1704879038608,-152.17,0.00026189,2]
[311033446,1704879038617,-200.0,0.00026189,2]
[311033448,1704879038626,-800.0,0.00026189,2]
[311033450,1704879038635,-259.65,0.00026235,2]
[311033452,1704879038645,-172.46,0.0002632,2]
[311033454,1704879038654,-184.87,0.00026383,2]
[311033456,1704879038663,-160.23,0.00026508,2]
[311033458,1704879038672,-187.42,0.00026575,2]
[311033460,1704879038682,-5759.08,0.00026575,2]
[311033462,1704879038691,-152.17,0.00026702,2]
[311033464,1704879038701,-172.46,0.00026762,2]
[311033466,1704879038710,-160.23,0.00026988,2]
[311033468,1704879038719,-400.0,0.00027,3]
[311033470,1704879038728,-3764.0,0.000271,2]
[311033472,1704879038737,-259.65,0.00027214,2]
[311033474,1704879038746,-152.17,0.00027216,2]
[311033476,1704879038755,-206.0,0.00027246,7]
[311033478,1704879038764,-19.75312137,0.00027397,2]
[311033725,1704879041270,-1480.24687863,0.00027397,2]
[311033727,1704879041279,-1079.370731,0.00027397,2]
[311033729,1704879041289,-250.0,0.00027397,2]
[311033730,1704879041298,-5423.03,0.00027397,10]
[311033732,1704879041307,-2183.48385033,0.00027397,10]
[311033735,1704879041321,-2335.70614967,0.00027397,10]
[311033737,1704879041330,-750.0,0.000274,2]
[311033738,1704879041340,-270.44,0.00027411,2]
[311033740,1704879041349,-160.23,0.00027469,2]
[311033742,1704879041358,-1128.57,0.00027534,2]
[311033744,1704879041367,-184.87,0.0002764,2]
[311033745,1704879041376,-152.17,0.00027729,2]
[311033747,1704879041385,-293.0,0.00027879,2]
[311033749,1704879041395,-160.23,0.00027949,2]
[311033751,1704879041405,-360.6,0.00027984,2]
[311033753,1704879041415,-259.65,0.00028192,2]
[311033754,1704879041424,-293.76,0.00028219,2]
[311033756,1704879041434,-76.63910599,0.00028219,2]
[311033759,1704879041456,-237.35089401,0.00028219,2]
[311033761,1704879041465,-293.76,0.00028219,2]
[311033763,1704879041475,-313.99,0.00028219,2]
[311033764,1704879041484,-417.61,0.00028219,2]
[311033766,1704879041493,-417.61,0.00028219,2]
[311033768,1704879041503,-313.99,0.00028219,2]
[311033770,1704879041512,-293.76,0.00028219,2]
[311033772,1704879041521,-417.61,0.00028219,2]
[311033774,1704879041531,-417.61,0.00028219,2]
[311033775,1704879041540,-312.79,0.00028219,2]
[311033777,1704879041549,-417.61,0.00028219,2]
[311033779,1704879041558,-150.0,0.00028219,2]
[311033781,1704879041567,-417.61,0.00028219,2]
[311033783,1704879041576,-300.0,0.00028219,2]
[311033784,1704879041585,-417.61,0.00028219,2]
[311033786,1704879041595,-293.76,0.00028219,2]
[311033788,1704879041604,-166.06,0.00028228,2]
[311033790,1704879041613,-152.17,0.00028243,2]
[311033792,1704879041622,-160.23,0.0002843,2]
[311033793,1704879041631,-177.8,0.0002846,2]
[311033795,1704879041640,-184.87,0.00028896,2]
[311033797,1704879041649,-160.23,0.0002891,2]
[311033799,1704879041658,-1091.16444403,0.00029,6]
[311033801,1704879041666,-498.91239264,0.00029,15]
[311033803,1704879041675,-505.75025218,0.00029,2]
[311033805,1704879041684,-293.48,0.00029041,2]
[311033806,1704879041694,-1028.0,0.00029048,2]
[311033808,1704879041704,-259.65,0.00029171,2]
[311033810,1704879041713,-939.46,0.00029234,2]
[311033812,1704879041722,-400.93,0.00029234,2]
[311033814,1704879041731,-400.93,0.00029234,2]
[311033816,1704879041740,-160.23,0.00029391,2]
[311033817,1704879041749,-62.46201714,0.000295,2]
[311033896,1704879042508,-925.09902265,0.000295,2]
[311033898,1704879042520,-18108.30676754,0.000295,2]
[311033900,1704879042530,-154.04137752,0.000295,2]
[311033902,1704879042539,-152.66418,0.00029502,2]
[311033904,1704879042550,-516.0,0.00029526,5]
[311033906,1704879042559,-800.0,0.00029561,5]
[311033907,1704879042569,-300.0,0.000296,10]
[311033908,1704879042578,-150.0,0.00029634,2]
[311033909,1704879042587,-500.0,0.00029677,2]
[311033910,1704879042596,-3833.1836,0.000297,2]
[311033911,1704879042605,-600.0,0.000297,10]
[311033912,1704879042614,-500.0,0.00029791,2]
[311033913,1704879042623,-1644.6261793,0.00029799,2]
[311033914,1704879042632,-2667.03914611,0.00029799,2]
[311033985,1704879043376,-6381.3617963,0.00029799,2]
[311033987,1704879043389,-6657.22701391,0.00029799,2]
[311033989,1704879043399,-219.95639986,0.00029799,2]
[311033991,1704879043409,-300.62032364,0.00029799,2]
[311033993,1704879043419,-15357.15758229,0.000298,2]
[311033995,1704879043429,-155.6353645,0.000298,2]
[311033997,1704879043439,-155.26279656,0.000298,2]
[311033999,1704879043449,-156.23166931,0.000298,2]
[311034001,1704879043463,-195.63942812,0.000298,2]
[311034004,1704879043472,-900.0,0.000298,10]
[311034006,1704879043482,-3770.25009476,0.00029801,2]
[311034010,1704879043511,-581.43759434,0.00029801,2]
[311034012,1704879043522,-155.41383694,0.00029801,2]
[311034014,1704879043532,-171.98631672,0.00029801,2]
[311034019,1704879043571,-887.66040113,0.00029801,2]
[311034020,1704879043583,-5937.96738971,0.00029801,2]
[311034021,1704879043600,-44916.7175,0.00029801,2]
[311034022,1704879043614,-58455.58613149,0.00029801,2]
[311034024,1704879043624,-11435.6716627,0.00029801,2]
[311034026,1704879043633,-292.23125739,0.00029802,2]
[311034028,1704879043643,-6197.48267312,0.00029802,2]
[311034166,1704879045741,-717.43999998,0.00029802,2]
[311034167,1704879045770,-285.42914247,0.00029802,2]
[311034168,1704879045783,-591.50185252,0.00029802,2]
[311034169,1704879045794,-531.25221699,0.00029802,2]
[311034171,1704879047030,-10652.74709195,0.00029802,2]
[311034172,1704879047041,-165.32038629,0.0002985,2]
[311034173,1704879047051,-160.23,0.00029872,2]
[311034174,1704879047060,-33066.7193,0.000299,2]
[311034175,1704879047069,-1200.0,0.000299,10]
[311034176,1704879047079,-162.51133995,0.000299,2]
[311034177,1704879047089,-162.51133994,0.000299,2]
[311034178,1704879047098,-162.51133994,0.000299,2]
[311034179,1704879047108,-162.51133994,0.000299,2]
[311034180,1704879047118,-500.0,0.00029906,2]
[311034181,1704879047127,-2548.35015776,0.0003,4]
[311034182,1704879047137,-155.0,0.0003,2]
[311034183,1704879047146,-200.0,0.0003,2]
[311034184,1704879047154,-379.20344,0.0003,2]
[311034185,1704879047163,-379.20345,0.0003,2]
[311034186,1704879047172,-379.20344,0.0003,2]
[311034187,1704879047182,-379.20345,0.0003,2]
[311034188,1704879047190,-379.20345,0.0003,2]
[311034189,1704879047199,-379.20344,0.0003,2]
[311034190,1704879047210,-4500.0,0.0003,4]
[311034191,1704879047220,-10516.70151405,0.0003,2]
[311034192,1704879047229,-2000.0,0.0003,2]
[311034193,1704879047238,-200.0,0.0003,2]
[311034194,1704879047247,-4000.0,0.0003,2]
[311034195,1704879047256,-162.51133994,0.00030007,2]
[311034196,1704879047265,-500.0,0.00030021,2]
[311034197,1704879047275,-5000.0,0.00030036,2]
[311034198,1704879047284,-250.0,0.00030036,2]
[311034199,1704879047293,-7500.0,0.00030036,2]
[311034200,1704879047302,-208.6989,0.00030036,2]
[311034201,1704879047311,-17192.79471261,0.00030036,3]
[311034202,1704879047448,-14424.99778769,0.00030036,3]
[311034203,1704879047460,-7233.63840004,0.00030036,3]
[311034204,1704879049163,311.46757101,0.00022939,2]
[311034205,1704879063740,854.32637403,0.00022939,2]
[311034206,1704879064190,6064.68281951,0.00022939,2]
[311034208,1704879064628,155.0,0.00022939,2]
[311034209,1704879070519,606.87411409,0.00022939,2]
[311034210,1704879070705,348.85479552,0.00022939,2]
[311034211,1704879071669,542.57213765,0.00022939,2]
[311034212,1704879073364,281.89719396,0.00022939,2]
[311034213,1704879074725,282.31252591,0.00022939,2]
[311034214,1704879095036,155.1479515,0.00022939,2]
[311034215,1704879095536,1030.31899337,0.00022939,2]
[311034216,1704879100530,1046.992628,0.00022939,2]
[311034217,1704879100781,155.60976152,0.00020645,2]
[311034218,1704879109402,882.45739522,0.00022939,2]
[311034219,1704879125374,193.18444918,0.0002,2]
[311034220,1704879168515,2913.05797708,0.00020645,2]
[311034221,1704879249157,500.0,0.00037104,120]
[311034225,1704879992034,158.74400117,0.00022966,2]
[311034227,1704880029071,151.74326546,0.00022851,2]
[311034326,1704880231646,-155.0,0.0002305,2]
[311034328,1704880231655,-220.06189485,0.0002305,2]
[311034330,1704880231665,-155.0,0.00023051,2]
[311034332,1704880231674,-1069.85346443,0.00023051,2]
[311034334,1704880231683,-155.0,0.00023052,2]
[311034336,1704880231693,-2303.07507198,0.00023052,2]
[311034338,1704880231703,-150.0,0.00023187,2]
[311034340,1704880231714,-300.0,0.00023187,2]
[311034342,1704880231724,-150.0,0.00023187,2]
[311034343,1704880231735,-712.55,0.00023188,2]
[311034344,1704880231744,-732.78,0.00023188,2]
[311034345,1704880231754,-724.95,0.00023188,2]
[311034346,1704880231763,-2898.72957174,0.00023188,2]
[311034347,1704880231799,-1251.60526918,0.00023188,2]
[311034348,1704880231808,-3400.33766768,0.0002319,2]
[311034349,1704880231855,-62.5950403,0.0002319,2]
[311034350,1704880231864,-1797.76579592,0.00024,2]
[311034351,1704880233143,-202.23420408,0.00024,2]
[311034352,1704880233153,-117.67930487,0.00025,2]
[311034353,1704880233165,-1882.32069513,0.00025,2]
[311034354,1704880233175,-350.0,0.00025,3]
[311034355,1704880233184,-3242.03,0.00025,2]
[311034356,1704880233194,-2486.72,0.00025,2]
[311034357,1704880233203,-180.0,0.00025166,2]
[311034358,1704880233212,-306.51,0.00025281,2]
[311034359,1704880233222,-2000.0,0.00026,2]
[311034360,1704880233231,-303.02943473,0.00027,5]
[311034361,1704880233241,-2000.0,0.00027,2]
[311034362,1704880233250,-198.48,0.00027116,2]
[311034363,1704880233259,-187.42,0.00027136,2]
[311034364,1704880233269,-184.87,0.00027136,2]
[311034365,1704880233279,-216.35,0.00027162,2]
[311034366,1704880233288,-250.0,0.00027186,2]
[311034367,1704880233298,-178.81,0.00027238,2]
[311034368,1704880233307,-1158.92,0.00027238,2]
[311034369,1704880233317,-178.0,0.00027238,2]
[311034370,1704880233326,-150.0,0.00027349,2]
[311034371,1704880233335,-4799.23,0.00027359,2]
[311034372,1704880233345,-162.79982714,0.000274,2]
[311034373,1704880233355,-250.0,0.00027431,2]
[311034374,1704880233364,-153.44,0.00027442,2]
[311034375,1704880233374,-306.51,0.00027544,2]
[311034376,1704880233383,-206.0,0.00027885,2]
[311034377,1704880233393,-2000.0,0.00028,2]
[311034378,1704880233402,-198.48,0.00028094,2]
[311034379,1704880233412,-183.0,0.0002821,2]
[311034380,1704880233422,-211.0,0.00028403,2]
[311034381,1704880233432,-344.742,0.0002849,2]
[311034382,1704880233441,-381.169,0.0002849,2]
[311034383,1704880233450,-1138.0,0.0002849,2]
[311034384,1704880233460,-1027.0,0.0002849,2]
[311034385,1704880233471,-1000.0,0.00028884,2]
[311034386,1704880233480,-2000.0,0.00029,2]
[311034387,1704880233489,-198.48,0.00029073,2]
[311034388,1704880233503,-152.33,0.00029257,2]